bitfinex-derivatives/quotes_BTCF0:USTF0_20250121
["timestamp","ask_amount","ask_price","bid_price","bid_amount"]
[1737482543714,0.81916941,106150.0,106140.0,0.001]
[1737482543900,0.188457,106140.0,106130.0,0.18861526]
[1737482544713,0.50487167,106150.0,106130.0,0.00014126]
[1737482544910,0.69331567,106150.0,106140.0,0.188457]
[1737482545110,0.69331567,106150.0,106130.0,0.18960826]
[1737482545111,0.69031567,106150.0,106130.0,0.18960826]
[1737482545610,0.50087167,106150.0,106140.0,0.188457]
[1737482545811,0.68931767,106150.0,106130.0,0.55041026]
[1737482546005,0.68931767,106150.0,106130.0,0.18961026]
[1737482546710,0.50087167,106150.0,106130.0,0.00114126]
[1737482547012,0.50087167,106150.0,106140.0,0.188457]
[1737482548309,0.14007167,106150.0,106140.0,0.188457]
[1737482548508,0.10691151,106150.0,106140.0,0.189457]
[1737482548708,0.10691151,106150.0,106140.0,0.001]
[1737482548917,0.29535051,106150.0,106140.0,0.001]
[1737482549616,0.188439,106150.0,106140.0,0.001]
[1737482551120,0.52885775,106160.0,106140.0,0.001]
[1737482551319,0.35648375,106160.0,106150.0,0.0943]
[1737482552326,0.35748375,106160.0,106150.0,0.0943]
[1737482552723,0.71828375,106160.0,106150.0,0.0943]
[1737482553316,0.72128375,106160.0,106150.0,0.0943]
[1737482553918,0.889623,106160.0,106150.0,0.0943]
[1737482554215,1.01748528,106160.0,106150.0,0.0943]
[1737482554411,1.01748528,106160.0,106130.0,0.31647554]
[1737482554412,0.188457,106140.0,106130.0,0.31647554]
[1737482554614,0.549243,106150.0,106130.0,0.77007554]
[1737482554812,0.549243,106150.0,106130.0,0.66356001]
[1737482555319,0.188443,106150.0,106140.0,0.31631928]
[1737482555512,0.188443,106150.0,106130.0,0.60295029]
[1737482555718,0.188443,106150.0,106130.0,0.79141529]
[1737482556012,0.188443,106150.0,106130.0,0.66555301]
[1737482556217,0.549243,106150.0,106130.0,0.66655301]
[1737482556623,0.188457,106140.0,106130.0,0.11728801]
[1737482556917,0.67711928,106140.0,106130.0,0.00314126]
[1737482557119,0.77191928,106140.0,106130.0,0.00314126]
[1737482557617,0.549257,106140.0,106130.0,0.00314126]
[1737482557918,0.71789609,106150.0,106130.0,0.19460726]
[1737482558110,0.52945209,106150.0,106140.0,0.188457]
[1737482558311,0.16865209,106150.0,106140.0,0.282657]
[1737482558719,0.52945209,106150.0,106140.0,0.282657]
[1737482559122,0.71789109,106150.0,106140.0,0.282657]
[1737482559619,0.71789109,106150.0,106140.0,0.283657]
[1737482560216,0.52945209,106150.0,106140.0,0.283657]
[1737482560416,0.59795295,106150.0,106140.0,0.0952]
[1737482561014,0.549239,106150.0,106140.0,0.283657]
[1737482561610,0.549239,106150.0,106140.0,0.0952]
[1737482562522,0.549239,106150.0,106140.0,0.11699831]
[1737482563217,0.67710128,106150.0,106140.0,0.11699831]
[1737482563418,0.67710128,106150.0,106140.0,0.001]
[1737482563617,0.77080128,106150.0,106140.0,0.001]
[1737482563819,0.188457,106140.0,106130.0,0.00014126]
[1737482564015,0.67711928,106140.0,106130.0,0.00014126]
[1737482565017,0.67711928,106140.0,106130.0,0.19061526]
[1737482565216,0.67711928,106140.0,106130.0,0.1891391]
[1737482565412,0.67711928,106140.0,106130.0,0.0006651]
[1737482565727,0.67711928,106140.0,106130.0,0.1891391]
[1737482566427,0.67711928,106140.0,106130.0,0.0006651]
[1737482566613,0.67711928,106140.0,106130.0,0.0046651]
[1737482569223,0.78866228,106140.0,106120.0,0.00014126]
[1737482569426,0.18851,106110.0,106100.0,0.1]
[1737482569628,1.02445256,106110.0,106050.0,0.00148197]
[1737482569830,1.03806128,106060.0,106050.0,0.02326587]
[1737482570015,1.03806128,106060.0,106050.0,0.21188287]
[1737482570220,0.910199,106060.0,106050.0,0.02326587]
[1737482570628,0.910199,106060.0,106050.0,0.11816587]
[1737482570828,1.03806128,106060.0,106050.0,0.30678287]
[1737482571127,0.3608,106060.0,106050.0,0.11816587]
[1737482571431,0.3608,106060.0,106050.0,0.31378287]
[1737482572121,0.3608,106060.0,106050.0,0.35149287]
[1737482572320,0.48866228,106060.0,106050.0,0.35449287]
[1737482572528,0.3608,106060.0,106050.0,0.35449287]
[1737482572825,0.188572,106080.0,106050.0,0.75033815]
[1737482573128,0.188572,106080.0,106070.0,0.188581]
[1737482573326,0.549372,106080.0,106070.0,0.188581]
[1737482573528,0.67723428,106080.0,106070.0,0.188581]
[1737482573726,0.31643428,106080.0,106070.0,0.254571]
[1737482573927,0.67723428,106080.0,106070.0,0.254571]
[1737482574227,0.31643428,106080.0,106070.0,0.06599]
[1737482574525,0.67723428,106080.0,106070.0,0.06599]
[1737482575029,0.80509656,106080.0,106070.0,0.06599]
[1737482575816,0.188599,106060.0,106050.0,0.03771]
[1737482576020,0.188652,106030.0,106020.0,0.28177776]
[1737482576228,0.67731428,106030.0,106020.0,0.28177776]
[1737482576826,0.67731428,106030.0,106020.0,0.09946476]
[1737482577123,0.67731428,106030.0,106020.0,0.00776476]
[1737482577721,0.67831428,106030.0,106020.0,0.01676476]
[1737482578121,0.67831428,106030.0,106020.0,0.20402]
[1737482578328,0.67831428,106030.0,106020.0,0.24174]
[1737482578721,0.67831428,106030.0,106020.0,0.24474]
[1737482579128,0.67831428,106030.0,106020.0,0.10319744]
[1737482579328,0.67831428,106030.0,106020.0,0.22939]
[1737482579527,0.67831428,106030.0,106020.0,0.04072]
[1737482579726,0.18867,106020.0,106010.0,0.83063135]
[1737482579926,0.67733228,106020.0,106010.0,0.83063135]
[1737482580624,0.3608,106020.0,106010.0,1.01931935]
[1737482581033,0.48866228,106020.0,106010.0,1.05704935]
[1737482581229,0.48966228,106020.0,106010.0,1.06404935]
[1737482581429,0.67833228,106020.0,106010.0,0.87536135]
[1737482582130,0.80619456,106020.0,106010.0,0.53114585]
[1737482582342,0.61752456,106020.0,106000.0,1.15238739]
[1737482582529,0.67734928,106010.0,106000.0,1.15178739]
[1737482583231,1.10521156,106010.0,106000.0,1.11106739]
[1737482583429,1.10521156,106010.0,106000.0,0.66701632]
[1737482583736,1.12702161,106010.0,106000.0,0.41930034]
[1737482583930,1.12702161,106010.0,106000.0,0.37920034]
[1737482584129,1.12702161,106010.0,106000.0,0.36921034]
[1737482584435,0.54910965,106000.0,105990.0,0.55366006]
[1737482584622,0.80483421,106000.0,105990.0,0.55366006]
[1737482584826,1.10483421,106000.0,105990.0,0.55366006]
[1737482585030,1.10483421,106000.0,105990.0,0.35430756]
[1737482585432,1.10493421,106000.0,105990.0,0.35430756]
[1737482585733,0.92322921,106000.0,105970.0,0.498144]
[1737482586040,1.03820328,105980.0,105970.0,0.43977053]
[1737482587227,1.03820328,105980.0,105970.0,0.63052953]
[1737482587636,1.03820328,105980.0,105970.0,0.62852953]
[1737482587826,1.04320328,105980.0,105970.0,0.62852953]
[1737482588022,0.49566228,105980.0,105970.0,0.62852953]
[1737482588233,0.68440328,105980.0,105970.0,0.43977053]
[1737482589129,0.98440328,105980.0,105970.0,0.19969803]
[1737482589326,0.98440328,105980.0,105970.0,0.24187751]
[1737482589534,1.11440328,105980.0,105970.0,0.24187751]
[1737482589733,1.11450328,105980.0,105970.0,0.24187751]
[1737482589927,1.29275769,105980.0,105970.0,0.24187751]
[1737482590128,1.16979541,105980.0,105970.0,0.24187751]
[1737482590438,0.68440328,105980.0,105970.0,0.24187751]
[1737482590635,0.68240328,105980.0,105970.0,0.24187751]
[1737482590935,0.68440328,105980.0,105970.0,0.24187751]
[1737482594328,0.556541,105980.0,105970.0,0.24187751]
[1737482594530,0.68440328,105980.0,105970.0,0.24187751]
[1737482595232,0.195741,105980.0,105970.0,0.24187751]
[1737482595538,0.18871,106000.0,105990.0,0.188723]
[1737482595731,0.00141629,106010.0,106000.0,0.188705]
[1737482595929,0.3608,106020.0,106010.0,0.188688]
[1737482595930,0.549477,106020.0,106010.0,0.188688]
[1737482596231,0.3608,106030.0,106000.0,0.3608]
[1737482596432,0.3608,106030.0,106000.0,0.188699]
[1737482596433,0.188705,106010.0,106000.0,0.188699]
[1737482596626,0.194714,106000.0,105990.0,0.188718]
[1737482596827,0.006,106000.0,105990.0,0.188718]
[1737482597032,0.555514,106000.0,105990.0,0.188718]
[1737482597231,0.549514,106000.0,105990.0,0.188718]
[1737482597431,0.551514,106000.0,105990.0,0.188718]
[1737482597833,0.3628,106000.0,105990.0,0.188718]
[1737482598031,0.002,106000.0,105990.0,0.38639489]
[1737482598232,0.00014126,106010.0,106000.0,0.188705]
[1737482598636,0.00014126,106010.0,106000.0,0.287205]
[1737482599239,1.16311937,106030.0,106020.0,0.188669]
[1737482599435,1.16311937,106030.0,106010.0,0.3608]
[1737482599631,0.3608,106020.0,106000.0,0.4593]
[1737482599944,1.16311937,106030.0,106010.0,0.3608]
[1737482600136,0.549469,106020.0,106010.0,0.188684]
[1737482600332,0.549469,106020.0,106010.0,0.18882526]
[1737482600938,3.08879234,106020.0,106010.0,0.00014126]
[1737482601341,2.72799234,106020.0,106000.0,0.0945]
[1737482601639,2.73199234,106020.0,106000.0,0.30444518]
[1737482601947,2.73399234,106020.0,106000.0,0.30444518]
[1737482602363,0.80814843,106020.0,106000.0,0.30444518]
[1737482602548,0.80814843,106020.0,106000.0,0.3608]
[1737482602740,0.80814843,106020.0,106000.0,0.549498]
[1737482603144,0.80414843,106020.0,106000.0,0.641698]
[1737482603340,0.80214843,106020.0,106000.0,0.641698]
[1737482603541,0.80214843,106020.0,106000.0,0.642698]
[1737482603847,0.61347943,106020.0,106000.0,0.454]
[1737482604044,1.92562329,106010.0,106000.0,0.642705]
[1737482604456,1.92562329,106010.0,106000.0,0.17089618]
[1737482604642,1.92562329,106010.0,106000.0,0.26459618]
[1737482604842,2.28642329,106010.0,106000.0,0.26459618]
[1737482605042,1.92562329,106010.0,106000.0,0.28580582]
[1737482605245,1.87562329,106010.0,106000.0,0.28580582]
[1737482605552,1.82572329,106010.0,106000.0,0.28580582]
[1737482605745,1.8207076,106010.0,106000.0,0.38400582]
[1737482606540,1.80135098,106010.0,106000.0,0.38400582]
[1737482606745,0.54999001,106020.0,106010.0,0.188687]
[1737482606948,0.001,106010.0,106000.0,0.40780664]
[1737482607148,0.550487,106010.0,106000.0,0.02720964]
[1737482607339,0.550487,106010.0,106000.0,0.006]
[1737482607543,0.188713,106000.0,105980.0,0.386238]
[1737482607745,0.549513,106000.0,105980.0,0.386238]
[1737482607939,0.54965426,106000.0,105980.0,0.58391489]
[1737482608153,0.188723,105990.0,105980.0,0.58391489]
[1737482608348,0.549523,105990.0,105980.0,0.22369897]
[1737482608657,0.549523,105990.0,105980.0,0.1975]
[1737482609048,0.18874,105980.0,105970.0,0.20263751]
[1737482609244,0.54954,105980.0,105970.0,0.20263751]
[1737482610154,0.54954,105980.0,105970.0,0.20463751]
[1737482610851,0.3608,105980.0,105970.0,0.39439551]
[1737482611051,0.3608,105980.0,105970.0,0.49199551]
[1737482611249,0.3608,105980.0,105970.0,0.48999551]
[1737482611447,0.3608,105990.0,105980.0,0.18874]
[1737482613047,0.3608,105990.0,105970.0,0.48424487]
[1737482613048,0.549523,105990.0,105970.0,0.48424487]
[1737482613351,0.3618,105990.0,105970.0,0.19389387]
[1737482613553,0.550531,105990.0,105970.0,0.38264987]
[1737482613760,0.550531,105990.0,105980.0,0.001]
[1737482613949,0.3608,105990.0,105980.0,0.002]
[1737482614154,0.549523,105990.0,105980.0,0.002]
[1737482614957,0.549523,105990.0,105970.0,0.38164887]
[1737482615152,0.549523,105990.0,105970.0,0.38364887]
[1737482615351,0.18874,105980.0,105970.0,0.38364887]
[1737482615754,0.54953,105990.0,105970.0,0.38364887]
[1737482616062,0.54953,105990.0,105970.0,0.38164887]
[1737482616261,0.54953,105990.0,105980.0,0.002]
[1737482616650,0.549523,105990.0,105980.0,0.001]
[1737482616950,0.644523,105990.0,105980.0,0.001]
[1737482617157,1.005323,105990.0,105980.0,0.001]
[1737482617368,1.097523,105990.0,105980.0,0.001]
[1737482618362,0.9088,105990.0,105970.0,0.16689751]
[1737482618564,0.27994,105980.0,105970.0,0.35565551]
[1737482618767,0.736728,105990.0,105970.0,0.16689751]
[1737482618952,0.548,105990.0,105980.0,0.19074]
[1737482619160,0.3608,105990.0,105980.0,0.19074]
[1737482619360,0.3608,105990.0,105980.0,0.38841689]
[1737482619658,0.3608,105990.0,105980.0,0.22648]
[1737482619966,0.3650937,106000.0,105980.0,0.82677654]
[1737482620162,0.3650937,106000.0,105990.0,0.31695954]
[1737482620359,0.3650937,106000.0,105990.0,0.188723]
[1737482620556,0.9145987,106000.0,105980.0,0.35470154]
[1737482620757,0.9135937,106000.0,105990.0,0.188723]
[1737482621062,0.5527937,106000.0,105990.0,0.188723]
[1737482621262,0.9135937,106000.0,105990.0,0.31695954]
[1737482621464,1.1023047,106000.0,105980.0,0.35470854]
[1737482621657,1.1023047,106000.0,105980.0,0.226472]
[1737482621858,0.549523,105990.0,105980.0,0.226472]
[1737482622051,0.549523,105990.0,105980.0,0.03774]
[1737482622559,1.04231024,106000.0,105980.0,0.71751654]
[1737482622560,1.10326471,106000.0,105980.0,0.71751654]
[1737482622864,1.1023047,106000.0,105990.0,0.188723]
[1737482623064,0.9135937,106000.0,105990.0,0.31695954]
[1737482623264,0.5527937,106000.0,105990.0,0.31695954]
[1737482623657,0.5537937,106000.0,105990.0,0.31695954]
[1737482624764,0.5537937,106000.0,105990.0,0.35622954]
[1737482625155,0.5527937,106000.0,105990.0,0.35622954]
[1737482625364,0.5527937,106000.0,105990.0,0.35822954]
[1737482625660,0.30987678,106000.0,105990.0,0.72002954]
[1737482625870,0.25987678,106000.0,105990.0,0.40307]
[1737482626165,0.6492,106020.0,106010.0,0.188687]
[1737482626363,0.6492,106020.0,106010.0,0.31692354]
[1737482626667,0.6492,106020.0,106010.0,0.188687]
[1737482626860,0.2884,106020.0,106010.0,0.31692354]
[1737482627364,0.6512,106020.0,106010.0,0.12823654]
[1737482627570,0.479071,106020.0,106010.0,0.188687]
[1737482628363,0.844871,106020.0,106010.0,0.188687]
[1737482628569,0.6562,106020.0,106010.0,0.188687]
[1737482628865,0.844869,106020.0,106010.0,0.188687]
[1737482631162,0.844869,106020.0,106000.0,0.50612732]
[1737482631363,0.844869,106020.0,106010.0,0.188687]
[1737482632466,0.842869,106020.0,106010.0,0.188687]
[1737482632666,0.844869,106020.0,106000.0,0.37789078]
[1737482632865,0.188687,106010.0,106000.0,0.56659378]
[1737482633470,0.549487,106010.0,106000.0,0.0265652]
[1737482633670,0.188687,106010.0,106000.0,0.0265652]
[1737482633861,0.549487,106010.0,106000.0,0.0265652]
[1737482634163,0.550487,106010.0,106000.0,0.0265652]
[1737482634358,0.550487,106010.0,106000.0,0.00014126]
[1737482634969,0.551487,106010.0,106000.0,0.00014126]
[1737482635370,0.190687,106010.0,106000.0,0.00014126]
[1737482635565,0.551487,106010.0,106000.0,0.00014126]
[1737482635764,0.190687,106010.0,106000.0,0.00014126]
[1737482635969,0.551487,106010.0,106000.0,0.00014126]
[1737482636270,0.190687,106010.0,106000.0,0.00014126]
[1737482636567,0.551487,106010.0,106000.0,0.00014126]
[1737482637262,0.190687,106010.0,106000.0,0.00014126]
[1737482637463,0.2884,106020.0,106000.0,0.61741434]
[1737482637659,0.07432201,106020.0,106010.0,0.67772354]
[1737482637868,0.50734845,106030.0,106020.0,0.18867]
[1737482638072,0.50734845,106030.0,106020.0,0.67770654]
[1737482638364,0.50734845,106030.0,106020.0,0.31690654]
[1737482638564,0.50734845,106030.0,106020.0,0.18867]
[1737482639165,0.00014126,106030.0,106020.0,0.31890654]
[1737482639364,0.00014126,106030.0,106020.0,0.67970654]
[1737482639566,0.00014126,106030.0,106020.0,0.68070654]
[1737482640764,0.19723229,106040.0,106030.0,0.188652]
[1737482640969,0.6322448,106060.0,106030.0,0.66443508]
[1737482641166,0.6322448,106060.0,106050.0,1.03845254]
[1737482641373,0.5353448,106060.0,106050.0,1.03845254]
[1737482641582,0.5003749,106080.0,106070.0,0.188581]
[1737482641868,0.5003749,106080.0,106070.0,0.31681754]
[1737482642063,0.5003749,106080.0,106070.0,0.188581]
[1737482642663,0.1904,106080.0,106070.0,0.188581]
[1737482642864,0.1924,106080.0,106070.0,0.188581]
[1737482643265,0.1934,106080.0,106070.0,0.188581]
[1737482643473,0.1934,106080.0,106070.0,0.67761754]
[1737482644072,0.0999,106080.0,106070.0,0.67761754]
[1737482644271,0.003,106080.0,106070.0,0.67761754]
[1737482644665,0.198,106100.0,106090.0,0.188545]
[1737482644868,0.36495244,106110.0,106090.0,0.84983654]
[1737482645061,0.36495244,106110.0,106100.0,0.67756354]
[1737482645469,0.36495244,106110.0,106100.0,0.188527]
[1737482645966,0.36695244,106110.0,106100.0,0.188527]
[1737482646367,0.72775244,106110.0,106100.0,0.188527]
[1737482646574,0.3688,106110.0,106100.0,0.189527]
[1737482647170,0.55731,106110.0,106100.0,0.001]
[1737482647474,0.64821,106110.0,106100.0,0.001]
[1737482647669,0.73821,106110.0,106100.0,0.001]
[1737482647865,0.74021,106110.0,106100.0,0.001]
[1737482648075,0.5517,106110.0,106100.0,0.001]
[1737482648274,0.5517,106110.0,106090.0,0.00014126]
[1737482648470,0.3608,106100.0,106070.0,0.12823654]
[1737482648781,0.549351,106090.0,106070.0,0.31681454]
[1737482648969,0.3608,106090.0,106080.0,0.12823654]
[1737482649371,0.549352,106090.0,106070.0,0.31681454]
[1737482649675,0.0938,106080.0,106070.0,0.03785126]
[1737482650179,0.4546,106080.0,106070.0,0.03785126]
[1737482650980,0.4546,106080.0,106070.0,0.22643226]
[1737482651868,0.0938,106080.0,106070.0,0.22843226]
[1737482652266,0.4546,106080.0,106070.0,0.22843226]
[1737482652470,0.0938,106080.0,106070.0,0.22843226]
[1737482652680,0.4546,106080.0,106070.0,0.22943226]
[1737482652883,0.0938,106080.0,106070.0,0.3576688]
[1737482653177,0.0938,106080.0,106070.0,0.22943226]
[1737482653376,0.188581,106070.0,106060.0,0.00141399]
[1737482653576,0.188626,106050.0,106030.0,0.188647]
[1737482653768,0.4574,106040.0,106030.0,0.21604112]
[1737482653973,0.4574,106040.0,106030.0,0.188647]
[1737482654273,0.4574,106040.0,106020.0,0.00141459]
[1737482654274,0.58563654,106040.0,106020.0,0.00141459]
[1737482654470,0.48903654,106030.0,106000.0,0.1]
[1737482654672,0.188652,106030.0,106020.0,0.03772]
[1737482654885,0.188687,106010.0,106000.0,0.1]
[1737482655083,0.910287,106010.0,106000.0,0.288705]
[1737482655512,0.910287,106010.0,106000.0,0.290705]
[1737482656089,1.005587,106010.0,106000.0,0.13973]
[1737482656287,1.005587,106010.0,106000.0,0.13773]
[1737482656489,1.20246576,106010.0,105990.0,0.1842891]
[1737482656689,0.00011465,106000.0,105990.0,0.1842891]
[1737482656888,0.00011465,106000.0,105990.0,0.67332564]
[1737482657088,0.00011465,106000.0,105990.0,0.700044]
[1737482657281,0.00011465,106000.0,105990.0,0.739344]
[1737482658485,0.00011465,106000.0,105990.0,0.56620359]
[1737482658786,0.00111465,106000.0,105990.0,0.7467619]
[1737482659191,0.00111465,106000.0,105990.0,0.7487619]
[1737482660187,0.08413722,106020.0,106010.0,0.188687]
[1737482660387,0.08413722,106020.0,106010.0,0.67772354]
[1737482661177,0.08418026,106020.0,106010.0,0.188687]
[1737482661382,0.08418026,106020.0,106010.0,0.190687]
[1737482661584,0.08418026,106020.0,106010.0,0.31992354]
[1737482661781,0.08418026,106020.0,106010.0,0.552487]
[1737482662382,0.08418026,106020.0,106010.0,0.68072354]
[1737482662690,0.0001843,106020.0,106010.0,0.191687]
[1737482662892,0.0001843,106020.0,106010.0,0.003]
[1737482663096,0.0001843,106020.0,106010.0,0.191687]
[1737482663592,0.5496543,106020.0,106010.0,0.00997]
[1737482663793,0.188693,106010.0,105990.0,0.25473736]
[1737482663998,0.36084304,106000.0,105990.0,0.25473736]
[1737482664585,4.304e-05,106000.0,105990.0,0.3829739]
[1737482665590,4.304e-05,106000.0,105990.0,0.3849739]
[1737482665786,4.304e-05,106000.0,105990.0,0.3859739]
[1737482666489,4.304e-05,106000.0,105990.0,0.35925554]
[1737482666891,4.304e-05,106000.0,105990.0,0.72005554]
[1737482667092,0.36084304,106000.0,105990.0,0.231019]
[1737482667487,0.54954804,106000.0,105990.0,0.0423]
[1737482667889,0.549505,106000.0,105990.0,0.0423]
[1737482669004,0.549505,106000.0,105990.0,0.0403]
[1737482669389,0.549505,106000.0,105990.0,0.229024]
[1737482669695,0.3608,106000.0,105990.0,0.229024]
[1737482669885,0.45544304,106000.0,105990.0,0.229024]
[1737482670086,0.539439,106000.0,105990.0,0.229024]
[1737482670396,0.53939596,106000.0,105990.0,0.229024]
[1737482670595,0.539439,106000.0,105990.0,0.229024]
[1737482671392,0.728145,106000.0,105990.0,0.229024]
[1737482672598,0.539439,106000.0,105990.0,0.35726054]
[1737482674391,0.084039,106000.0,105990.0,0.35726054]
[1737482674895,4.304e-05,106000.0,105990.0,0.2156766]
[1737482675595,4.304e-05,106000.0,105990.0,0.08744006]
[1737482675797,4.304e-05,106000.0,105990.0,0.2156766]
[1737482676394,0.36084304,106000.0,105990.0,0.2156766]
[1737482676796,4.304e-05,106000.0,105980.0,0.38706801]
[1737482677004,0.95303654,105990.0,105970.0,0.16489751]
[1737482677201,0.48903654,105980.0,105950.0,0.02323098]
[1737482677410,0.3608,105960.0,105950.0,0.188793]
[1737482677609,0.549573,105970.0,105950.0,0.188793]
[1737482677803,0.36084304,105960.0,105950.0,0.31702954]
[1737482678301,4.304e-05,105960.0,105950.0,0.31702954]
[1737482678811,0.00104304,105960.0,105950.0,0.31902954]
[1737482679001,0.00104304,105960.0,105950.0,0.67982954]
[1737482680108,0.00104304,105960.0,105950.0,0.68282954]
[1737482680502,0.00104304,105960.0,105950.0,0.554593]
[1737482680701,0.00104304,105960.0,105950.0,0.193793]
[1737482680902,0.36184304,105960.0,105950.0,0.193793]
[1737482681100,0.00104304,105960.0,105950.0,0.193793]
[1737482683207,0.14382568,105970.0,105960.0,0.188777]
[1737482683506,0.00032477,105980.0,105970.0,0.188759]
[1737482683812,0.00032477,105980.0,105970.0,0.549559]
[1737482684213,0.00032477,105980.0,105970.0,0.31699554]
[1737482684715,0.00032477,105980.0,105970.0,0.188759]
[1737482684916,0.00032477,105980.0,105970.0,0.190759]
[1737482685406,0.65286826,105990.0,105970.0,0.190759]
[1737482685809,0.29206826,105990.0,105970.0,0.190759]
[1737482686009,0.65286826,105990.0,105970.0,0.191759]
[1737482686313,0.29206826,105990.0,105970.0,0.191759]
[1737482686810,0.29306826,105990.0,105970.0,0.190759]
[1737482687002,0.10434126,105990.0,105980.0,0.188741]
[1737482687315,0.10634126,105990.0,105980.0,0.188741]
[1737482688111,0.10534126,105990.0,105980.0,0.188741]
[1737482688303,0.10434126,105990.0,105980.0,0.188741]
[1737482688504,0.10434126,105990.0,105980.0,0.190741]
[1737482688812,0.10434126,105990.0,105980.0,0.188741]
[1737482689004,0.10634126,105990.0,105980.0,0.188741]
[1737482689611,0.10634126,105990.0,105980.0,0.31697754]
[1737482689612,0.00314126,105990.0,105980.0,0.31697754]
[1737482689808,0.00314126,105990.0,105980.0,0.70069282]
[1737482691008,0.00114126,105990.0,105980.0,0.70069282]
[1737482691312,0.00114126,105990.0,105980.0,0.70469282]
[1737482691816,0.00114126,105990.0,105980.0,0.57645628]
[1737482692514,0.00114126,105990.0,105980.0,0.70569282]
[1737482694118,0.00014126,105990.0,105980.0,0.70769282]
[1737482694920,0.16795313,106000.0,105990.0,0.188724]
[1737482695113,0.16795313,106000.0,105990.0,0.67776054]
[1737482697017,0.36199439,106010.0,106000.0,0.188706]
[1737482697420,0.36199439,106010.0,106000.0,0.31694254]
[1737482698325,0.36199439,106010.0,106000.0,0.31894254]
[1737482698714,0.36199439,106010.0,106000.0,0.31694254]
[1737482699022,0.36199439,106010.0,106000.0,0.31894254]
[1737482699323,0.36199439,106010.0,106000.0,0.31994254]
[1737482700019,0.16809439,106010.0,106000.0,0.31994254]
[1737482700220,0.16809439,106010.0,106000.0,0.80697908]
[1737482700524,0.16809439,106010.0,106000.0,0.68074254]
[1737482701521,0.16809439,106010.0,106000.0,0.67974254]
[1737482701722,0.16909439,106010.0,106000.0,0.68474254]
[1737482702820,0.11909439,106010.0,106000.0,0.83587143]
[1737482703217,0.06819439,106010.0,106000.0,0.21359835]
[1737482703427,0.06919439,106010.0,106000.0,0.21659835]
[1737482703627,0.16419439,106010.0,106000.0,0.21859835]
[1737482703931,0.06819439,106010.0,106000.0,0.65986926]
[1737482704121,0.06919439,106010.0,106000.0,0.66486926]
[1737482704321,0.06919439,106010.0,106000.0,0.66286926]
[1737482704522,0.06919439,106010.0,106000.0,0.66486926]
[1737482705028,0.001,106010.0,106000.0,0.66486926]
[1737482705222,0.29511516,106030.0,106020.0,0.18867]
[1737482705422,0.29511516,106030.0,106020.0,0.63494091]
[1737482705928,0.29511516,106030.0,106020.0,0.62494091]
[1737482707029,0.29611516,106030.0,106020.0,0.62494091]
[1737482707231,0.29611516,106030.0,106020.0,0.62694091]
[1737482708127,0.15368937,106050.0,106020.0,0.94170882]
[1737482708324,0.05188937,106050.0,106040.0,0.72037682]
[1737482708629,0.05188937,106050.0,106040.0,0.63490591]
[1737482709127,0.24988937,106060.0,106040.0,0.44627091]
[1737482709429,0.25003063,106060.0,106050.0,0.27408791]
[1737482710630,0.25603063,106060.0,106050.0,0.27508791]
[1737482711127,0.25903063,106060.0,106050.0,0.27508791]
[1737482711328,0.25903063,106060.0,106050.0,0.72135882]
[1737482711329,0.15923063,106060.0,106050.0,0.72135882]
[1737482711720,0.06103063,106060.0,106050.0,0.72135882]
[1737482712527,0.00914126,106060.0,106050.0,0.72135882]
[1737482713436,0.1938,106080.0,106050.0,0.53274182]
[1737482713638,0.1938,106080.0,106070.0,0.27405191]
[1737482714533,0.649331,106100.0,106090.0,0.188546]
[1737482714534,0.1,106100.0,106090.0,0.188546]
[1737482714740,0.1,106100.0,106090.0,0.63481691]
[1737482717040,0.105,106100.0,106090.0,0.63481691]
[1737482717428,0.106,106100.0,106090.0,0.63481691]
[1737482717827,0.106,106100.0,106090.0,1.01870363]
[1737482718230,0.106,106100.0,106090.0,1.10417454]
[1737482718640,0.18976593,106110.0,106100.0,0.188529]
[1737482718841,9.42e-05,106110.0,106100.0,0.72027082]
[1737482719034,0.1058,106130.0,106100.0,0.53174182]
[1737482719234,0.10134156,106130.0,106120.0,0.72023482]
[1737482719437,0.22535125,106140.0,106130.0,0.188475]
[1737482719745,0.00141374,106140.0,106130.0,0.67711632]
[1737482719945,0.13233473,106150.0,106130.0,0.48864132]
[1737482720141,0.1044,106150.0,106140.0,0.67709832]
[1737482721346,0.1094,106150.0,106140.0,0.67709832]
[1737482721743,0.1114,106150.0,106140.0,0.67709832]
[1737482721944,0.2157,106150.0,106140.0,0.67709832]
[1737482722548,0.3148,106150.0,106140.0,0.67709832]
[1737482723251,0.3148,106150.0,106140.0,0.5074522]
[1737482724444,0.3148,106150.0,106140.0,0.31629832]
[1737482724644,0.80344132,106150.0,106120.0,0.188491]
[1737482724950,0.549257,106140.0,106120.0,0.188491]
[1737482725351,0.67712432,106130.0,106110.0,0.188507]
[1737482725547,0.1037,106120.0,106110.0,0.188507]
[1737482725748,0.202,106120.0,106110.0,0.188507]
[1737482727153,0.204,106120.0,106110.0,0.188507]
[1737482727354,0.204,106120.0,106100.0,0.55103578]
[1737482727756,0.208,106120.0,106100.0,0.55103578]
[1737482727956,0.1053,106110.0,106100.0,0.73956378]
[1737482728853,0.1053,106110.0,106100.0,0.69243278]
[1737482730055,0.78245232,106110.0,106100.0,0.02332797]
[1737482730263,0.188528,106100.0,106090.0,0.00011883]
[1737482730556,0.188528,106100.0,106080.0,0.549355]
[1737482730859,0.1042,106090.0,106080.0,0.549355]
[1737482731060,0.398011,106110.0,106100.0,0.188528]
[1737482731259,0.758811,106110.0,106090.0,0.549334]
[1737482731559,0.00024283,106100.0,106090.0,0.549334]
[1737482731761,0.00024283,106100.0,106090.0,0.54947526]
[1737482732144,0.00024283,106100.0,106090.0,0.18867526]
[1737482732348,0.00024283,106100.0,106090.0,0.54947526]
[1737482732848,0.00024283,106100.0,106090.0,0.67731658]
[1737482733245,0.00024283,106100.0,106090.0,0.67831658]
[1737482733849,0.00024283,106100.0,106090.0,0.55047526]
[1737482734457,0.00024283,106100.0,106090.0,0.55347526]
[1737482735061,0.54957083,106100.0,106090.0,0.00414126]
[1737482735457,0.54957083,106100.0,106080.0,0.02273111]
[1737482735458,0.188546,106090.0,106080.0,0.02273111]
[1737482735656,0.188574,106080.0,106060.0,0.31784738]
[1737482735963,0.18870083,106070.0,106060.0,0.31784738]
[1737482736660,0.18870083,106070.0,106060.0,0.19000606]
[1737482736858,0.18870083,106070.0,106060.0,0.00341406]
[1737482737050,0.1886,106060.0,106050.0,0.00014126]
[1737482737258,0.188617,106050.0,106040.0,7.318e-05]